Workbook

Sheet 封面
A1: 2023年部门预算公开表
D4: 单位编码： | E4: 421001
D5: 单位名称： | E5: 岳阳县水利局

Sheet 目录
B1: 部门预算公开表
B3: 一、部门预算报表
B4: 1 | C4: 收支总表
B5: 2 | C5: 收入总表
B6: 3 | C6: 支出总表
B7: 4 | C7: 支出预算分类汇总表（按政府预算经济分类）
B8: 5 | C8: 支出预算分类汇总表（按部门预算经济分类）
B9: 6 | C9: 财政拨款收支总表
B10: 7 | C10: 一般公共预算支出表
B11: 8 | C11: 一般公共预算基本支出表
B12: 9 | C12: 一般公共预算基本支出表--人员经费(工资福利支出)(按政府预算经济分类)
B13: 10 | C13: 一般公共预算基本支出表--人员经费(工资福利支出)(按部门预算经济分类)
B14: 11 | C14: 一般公共预算基本支出表--人员经费(对个人和家庭的补助)(按政府预算经济分类)
B15: 12 | C15: 一般公共预算基本支出表--人员经费(对个人和家庭的补助)（按部门预算经济分类）
B16: 13 | C16: 一般公共预算基本支出表--公用经费(商品和服务支出)（按政府预算经济分类）
B17: 14 | C17: 一般公共预算基本支出表--公用经费(商品和服务支出)(按部门预算经济分类)
B18: 15 | C18: 一般公共预算“三公”经费支出表
B19: 16 | C19: 政府性基金预算支出表
B20: 17 | C20: 政府性基金预算支出分类汇总表（按政府预算经济分类）
B21: 18 | C21: 政府性基金预算支出分类汇总表（按部门预算经济分类）
B22: 19 | C22: 国有资本经营预算表
B23: 20 | C23: 财政专户管理资金预算支出表
B24: 21 | C24: 专项资金预算汇总表
B25: 22 | C25: 项目支出绩效目标表
B26: 23 | C26: 部门整体支出绩效目标表
B27: 注：以上部门预算报表中，空表表示本部门无相关收支情况。

Sheet 1收支总表
A1: 收支总表
A2: 单位：421001-岳阳县水利局 | G2: 金额单位：万元
A3: 收入 | C3: 支出
A4: 项目 | B4: 预算数 | C4: 项目（按功能分类） | D4: 预算数 | E4: 项目（按部门预算经济分类） | F4: 预算数 | G4: 项目（按政府预算经济分类） | H4: 预算数
A5: 一、一般公共预算拨款收入 | B5: =B6+B7 -> 981.64 | C5: （一）一般公共服务支出 | E5: 一、基本支出 | F5: =F6+F7 -> 761.64 | G5: 一、机关工资福利支出 | H5: =F6+F10 -> 869.84
A6: 经费拨款 | B6: 891.64 | C6: （二）外交支出 | E6: 工资福利支出 | F6: =679.84 -> 679.84 | G6: 二、机关商品和服务支出 | H6: =F7+F11 -> 111.80
A7: 纳入一般公共预算管理的非税收入拨款 | B7: 90.00 | C7: （三）国防支出 | E7: 商品和服务支出 | F7: =77.3+4.5 -> 81.80 | G7: 三、机关资本性支出（一）
A8: 行政事业性收费收入 | C8: （四）公共安全支出 | E8: 对个人和家庭的补助 | G8: 四、机关资本性支出（二） | H8: =F15 -> 11,709.86
A9: 专项收入 | C9: （五）教育支出 | E9: 二、项目支出 | F9: =SUM(F10:F19) -> 11,929.86 | G9: 五、对事业单位经常性补助
A10: 国有资本经营收入 | C10: （六）科学技术支出 | E10: 按项目管理的工资福利支出 | F10: =100+90 -> 190.00 | G10: 六、对事业单位资本性补助
A11: 国有资源（资产）有偿使用收入 | C11: （七）文化旅游体育与传媒支出 | E11: 按项目管理的商品和服务支出 | F11: 30.00 | G11: 七、对企业补助
A12: 罚没收入 | C12: （八）社会保障和就业支出 | D12: 73.92 | E12: 按项目管理的对个人和家庭的补助 | G12: 八、对企业资本性支出
A13: 捐赠收入 | C13: （九）社会保险基金支出 | E13: 债务利息及费用支出 | G13: 九、对个人和家庭的补助
A14: 政府住房基金收入 | C14: （十）卫生健康支出 | D14: 40.08 | E14: 资本性支出（基本建设） | G14: 十、对社会保障基金补助
A15: 其他纳入一般公共预算管理的非税收入 | C15: （十一）节能环保支出 | E15: 资本性支出 | F15: =6709.86+5000 -> 11,709.86 | G15: 十一、债务利息及费用支出
A16: 一般债券 | C16: （十二）城乡社区支出 | E16: 对企业补助（基本建设） | G16: 十二、债务还本支出
A17: 外国政府和国际组织贷款 | C17: （十三）农林水支出 | D17: 12,526.87 | E17: 对企业补助 | G17: 十三、转移性支出
A18: 外国政府和国际组织捐赠 | C18: （十四）交通运输支出 | E18: 对社会保障基金补助 | G18: 十四、其他支出
A19: 二、政府性基金预算拨款收入 | C19: （十五）资源勘探工业信息等支出 | E19: 其他支出
A20: 三、国有资本经营预算拨款收入 | C20: （十六）商业服务业等支出 | E20: 三、事业单位经营服务支出
A21: 四、社会保障基金预算资金 | C21: （十七）金融支出
A22: 五、财政专户管理资金收入 | C22: （十八）援助其他地区支出
A23: 六、上级财政补助收入 | C23: （十九）自然资源海洋气象等支出
A24: 一般公共预算补助 | C24: （二十）住房保障支出 | D24: 50.63
A25: 政府性基金补助 | C25: （二十一）粮油物资储备支出
A26: 国有资本经营预算补助 | C26: （二十二）国有资本经营预算支出
A27: 七、事业收入 | C27: （二十三）灾害防治及应急管理支出
A28: 八、事业单位经营收入 | C28: （二十四）预备费
A29: 九、上级单位补助收入 | B29: 5,000.00 | C29: （二十五）其他支出
A30: 十、附属单位上缴收入 | C30: （二十六）转移性支出
A31: 十一、其他收入 | C31: （二十七）债务还本支出
C32: （二十八）债务付息支出
C33: （二十九）债务发行费用支出
C34: （三十）抗疫特别国债安排的支出
A36: 本 年 收 入 合 计 | B36: =B5+B19+B20+B21+B22+B23+B27+B28+B29+B30+B31 -> 5,981.64 | C36: 本 年 支 出 合 计 | D36: =SUM(D5:D35) -> 12,691.50 | E36: 本 年 支 出 合 计 | F36: =F5+F9+F20 -> 12,691.50 | G36: 本 年 支 出 合 计 | H36: =SUM(H5:H35) -> 12,691.50
A37: 上年结转结余 | B37: 6,709.86 | C37: 年终结转结余 | E37: 年终结转结余 | G37: 年终结转结余
A39: 收 入 总 计 | B39: =B36+B37 -> 12,691.50 | C39: 支 出 总 计 | D39: =D36+D37 -> 12,691.50 | E39: 支 出 总 计 | F39: =F36 -> 12,691.50 | G39: 支 出 总 计 | H39: =H36 -> 12,691.50

Sheet 2收入总表
A2: 收入总表 | S2: 收入总表
A3: 单位：421001-岳阳县水利局 | S3: 单位：421001-岳阳县水利局 | X3: 金额单位：万元
A4: 部门（单位）代码 | B4: 部门（单位）名称 | C4: 合计 | D4: 本年收入 | S4: 上年结转结余
D5: 小计 | E5: 一般公共预算 | F5: 政府性基金预算 | G5: 国有资本经营预算 | H5: 社会保险基金预算资金 | I5: 财政专户管理资金 | J5: 上级财政补助收入 | N5: 事业收入 | O5: 事业单位经营收入 | P5: 上级单位补助收入 | Q5: 附属单位上缴收入 | R5: 其他收入 | S5: 小计 | T5: 一般公共预算 | U5: 政府性基金预算 | V5: 国有资本经营预算 | W5: 社会保险基金预算资金 | X5: 财政专户管理资金 | Y5: 单位资金
J6: 一般公共预算补助 | K6: 政府性基金补助 | L6: 国有资本经营预算补助 | M6: 社会保险基金预算资金
B7: 合计
A8: 421 | B8: 岳阳县水利局 | C8: =D8+S8 -> 12,691.50 | D8: =E8+P8 -> 5,981.64 | E8: 981.64 | P8: 5,000.00 | S8: =SUM(T8:Y8) -> 6,709.86 | U8: 6,709.86
A9: 421001 | B9: 岳阳县水利局 | C9: =D9+S9 -> 12,691.50 | D9: =E9+P9 -> 5,981.64 | E9: 981.64 | P9: 5,000.00 | S9: =SUM(T9:Y9) -> 6,709.86 | U9: 6,709.86

Sheet 3支出总表
A2: 支出总表
A3: 单位：421001-岳阳县水利局 | K3: 金额单位：万元
A4: 功能科目 | D4: 科目编码 | E4: 科目名称 | F4: 合计 | G4: 基本支出 | H4: 项目支出 | I4: 事业单位经营支出 | J4: 上缴上级支出 | K4: 对附属单位补助支出
A5: 类 | B5: 款 | C5: 项
D6: 合计
D7: 421 | E7: 岳阳县水利局 | F7: =SUM(G7:K7) -> 12,691.50 | G7: =G8 -> 761.64 | H7: =H8 -> 11,929.86 | I7: =I8 -> 0.00 | J7: =J8 -> 0.00 | K7: =K8 -> 0.00
D8: 421001 | E8: 岳阳县水利局 | F8: =SUM(G8:K8) -> 12,691.50 | G8: =SUM(G9:G16) -> 761.64 | H8: =SUM(H9:H16) -> 11,929.86 | I8: =SUM(I9:I16) -> 0.00 | J8: =SUM(J9:J16) -> 0.00 | K8: =SUM(K9:K16) -> 0.00
A9: 208 | B9: 05 | C9: 05 | D9: 2080505 | E9: 机关事业单位基本养老保险缴费支出 | F9: =SUM(G9:K9) -> 67.51 | G9: 67.51
A10: 208 | B10: 05 | C10: 06 | D10: 2080506 | E10: 机关事业单位职业年金缴费支出 | F10: 2.19 | G10: 2.19
A11: 208 | B11: 99 | C11: 99 | D11: 2089999 | E11: 其他社会保障和就业支出 | F11: 4.22 | G11: 4.22
A12: 210 | B12: 11 | C12: 01 | D12: 2101101 | E12: 行政单位医疗 | F12: 40.09 | G12: =35.87+4.22 -> 40.09
A13: 213 | B13: 03 | C13: 01 | D13: 2130301 | E13: 行政运行 | F13: 817.00 | G13: =687-90 -> 597.00 | H13: 220.00
A14: 221 | B14: 02 | C14: 01 | D14: 2210201 | E14: 住房公积金 | F14: 50.63 | G14: 50.63
A15: 229 | B15: 04 | C15: 02 | D15: 2290402 | E15: 其他地方自行试点项目收益专项债券收入安排的支出 | F15: 6,709.86 | H15: 6,709.86
A16: 213 | B16: 03 | C16: 05 | D16: 2130305 | E16: 水利工程建设 | F16: 5,000.00 | H16: 5,000.00

Sheet 4支出分类(政府预算)
A2: 支出预算分类汇总表（按政府预算经济分类）
A3: 单位：421001-岳阳县水利局 | S3: 金额单位：万元
A4: 功能科目 | D4: 单位代码 | E4: 单位名称（功能科目） | F4: 总 计 | G4: 机关工资福利支出 | H4: 机关商品和服务支出 | I4: 机关资本性支出(一) | J4: 机关资本性支出(二) | K4: 对事业单位经常性补助 | L4: 对事业单位资本性补助 | M4: 对企业补助 | N4: 对企业资本性支出 | O4: 对个人和家庭的补助 | P4: 对社会保障基金补助 | Q4: 债务利息及费用支出 | R4: 债务还本支出 | S4: 转移性支出 | T4: 其他支出
A5: 类 | B5: 款 | C5: 项
E6: 合计 | F6: =F7 -> 12,691.50 | G6: =G7 -> 869.84 | H6: =H7 -> 111.80 | J6: =J7 -> 11,709.86
D7: 421 | E7: 岳阳县水利局 | F7: =F8 -> 12,691.50 | G7: =G8 -> 869.84 | H7: =H8 -> 111.80 | J7: =J8 -> 11,709.86
D8: 421001 | E8: 岳阳县水利局 | F8: =SUM(F9:F11) -> 12,691.50 | G8: =SUM(G9:G11) -> 869.84 | H8: =SUM(H9:H11) -> 111.80 | J8: =SUM(J9:J11) -> 11,709.86
A9: 213 | B9: 03 | C9: 01 | D9: 421001 | E9: 行政运行 | F9: =SUM(G9:K9) -> 981.64 | G9: 869.84 | H9: 111.80
A10: 229 | B10: 04 | C10: 02 | D10: 421001 | E10: 其他地方自行试点项目收益专项债券收入安排的支出 | F10: =SUM(G10:K10) -> 6,709.86 | J10: 6,709.86
A11: 213 | B11: 03 | C11: 05 | D11: 421001 | E11: 水利工程建设 | F11: =SUM(G11:K11) -> 5,000.00 | J11: 5,000.00

Sheet 5支出分类（部门预算）
A2: 支出预算分类汇总表（按部门预算经济分类）
A3: 单位：421001-岳阳县水利局 | T3: 金额单位：万元
A4: 功能科目 | D4: 单位代码 | E4: 单位名称（功能科目） | F4: 总 计 | G4: 基本支出 | K4: 项目支出
A5: 类 | B5: 款 | C5: 项 | G5: 合计 | H5: 工资福利支出 | I5: 一般商品和服务支出 | J5: 对个人和家庭的补助 | K5: 合计 | L5: 按项目管理的工资福利支出 | M5: 按项目管理的商品和服务支出 | N5: 按项目管理的对个人和家庭的补助 | O5: 债务利息及费用支出 | P5: 资本性支出（基本建设） | Q5: 资本性支出 | R5: 对企业补助（基本建设） | S5: 对企业补助 | T5: 对社会保障基金补助 | U5: 其他支出
E6: 合计 | F6: =G6+K6 -> 5,981.64 | G6: =G7 -> 761.64 | H6: =H7 -> 679.84 | I6: =I7 -> 81.80 | J6: =J7 -> 0.00 | K6: =SUM(L6:U6) -> 5,220.00 | L6: =L7 -> 190.00 | M6: =M7 -> 30.00 | Q6: =Q7 -> 5,000.00
D7: 421 | E7: 岳阳县水利局 | F7: 5,981.64 | G7: =G8 -> 761.64 | H7: =H8 -> 679.84 | I7: =I8 -> 81.80 | J7: =J8 -> 0.00 | K7: =SUM(L7:U7) -> 5,220.00 | L7: =L8 -> 190.00 | M7: =M8 -> 30.00 | Q7: =Q8 -> 5,000.00
D8: 421001 | E8: 岳阳县水利局 | F8: 5,981.64 | G8: =SUM(G9:G15) -> 761.64 | H8: 679.84 | I8: 81.80 | J8: 0.00 | K8: 5,220.00 | L8: 190.00 | M8: 30.00 | Q8: =SUM(Q9:Q15) -> 5,000.00
A9: 213 | B9: 03 | C9: 01 | D9: 421001 | E9: 行政运行 | F9: 817.00 | G9: =SUM(H9:J9) -> 597.00 | H9: 515.20 | I9: 81.80 | K9: =SUM(L9:U9) -> 220.00 | L9: 190.00 | M9: 30.00
A10: 208 | B10: 05 | C10: 05 | D10: 421001 | E10: 机关事业单位基本养老保险缴费支出 | F10: 67.51 | G10: 67.51 | H10: 67.51
A11: 208 | B11: 05 | C11: 06 | D11: 421001 | E11: 机关事业单位职业年金缴费支出 | F11: 2.19 | G11: 2.19 | H11: 2.19
A12: 208 | B12: 99 | C12: 99 | D12: 421001 | E12: 其他社会保障和就业支出 | F12: 4.22 | G12: 4.22 | H12: 4.22
A13: 210 | B13: 11 | C13: 01 | D13: 421001 | E13: 行政单位医疗 | F13: 40.09 | G13: 40.09 | H13: 40.09
A14: 221 | B14: 02 | C14: 01 | D14: 421001 | E14: 住房公积金 | F14: 50.63 | G14: 50.63 | H14: 50.63
A15: 213 | B15: 03 | C15: 05 | D15: 421001 | E15: 水利工程建设 | F15: 5,000.00 | K15: =SUM(L15:U15) -> 5,000.00 | Q15: 5,000.00

Sheet 6财政拨款收支总表
A2: 财政拨款收支总表
A3: 单位：421001-岳阳县水利局 | D3: 金额单位：万元
A4: 收入 | C4: 支出
A5: 项目 | B5: 预算数 | C5: 项目 | D5: 预算数
A6: 一、本年收入 | B6: =B7 -> 5,981.64 | C6: 一、本年支出 | D6: =SUM(D7:D36) -> 12,691.50
A7: （一）一般公共预算拨款 | B7: =B8+B9 -> 5,981.64 | C7: （一）一般公共服务支出
A8: 经费拨款 | B8: 5,891.64 | C8: （二）外交支出
A9: 纳入一般公共预算管理的非税收入拨款 | B9: 90.00 | C9: （三）国防支出
A10: （二）政府性基金预算拨款 | C10: （四）公共安全支出
A11: （三）国有资本经营预算拨款 | C11: （五）教育支出
A12: （四）社会保险基金预算资金 | C12: （六）科学技术支出
A13: 二、上年结转 | B13: =SUM(B14:B17) -> 6,709.86 | C13: （七）文化旅游体育与传媒支出
A14: （一）一般公共预算拨款 | C14: （八）社会保障和就业支出 | D14: 73.92
A15: （二）政府性基金预算拨款 | B15: 6,709.86 | C15: （九）社会保险基金支出
A16: （三）国有资本经营预算拨款 | C16: （十）卫生健康支出 | D16: 40.08
A17: （四）社会保险基金预算资金 | C17: （十一）节能环保支出
C18: （十二）城乡社区支出
C19: （十三）农林水支出 | D19: 12,526.87
C20: （十四）交通运输支出
C21: （十五）资源勘探工业信息等支出
C22: （十六）商业服务业等支出
C23: （十七）金融支出
C24: （十八）援助其他地区支出
C25: （十九）自然资源海洋气象等支出
C26: （二十）住房保障支出 | D26: 50.63
C27: （二十一）粮油物资储备支出
C28: （二十二）国有资本经营预算支出
C29: （二十三）灾害防治及应急管理支出
C30: （二十四）预备费
C31: （二十五）其他支出
C32: （二十六）转移性支出
C33: （二十七）债务还本支出
C34: （二十八）债务付息支出
C35: （二十九）债务发行费用支出
C36: （三十）抗疫特别国债安排的支出
C38: 二、年终结转结余
A40: 收 入 总 计 | B40: =B6+B13 -> 12,691.50 | C40: 支 出 总 计 | D40: =D6+D38 -> 12,691.50

Sheet 7一般公共预算支出表
A2: 一般公共预算支出表
A3: 单位：421001-岳阳县水利局 | J3: 金额单位：万元
A4: 功能科目 | D4: 科目编码 | E4: 科目名称 | F4: 合计 | G4: 基本支出 | K4: 项目支出
G5: 小计 | H5: 人员经费 | J5: 公用经费
A6: 类 | B6: 款 | C6: 项 | H6: 工资福利支出 | I6: 对个人和家庭的补助
E7: 合计 | F7: =F8 -> 5,981.64 | G7: =G8 -> 761.64 | H7: =H8 -> 679.84 | J7: =J8 -> 81.80 | K7: =K8 -> 5,220.00
D8: 421 | E8: 岳阳县水利局 | F8: =F9 -> 5,981.64 | G8: =G9 -> 761.64 | H8: =H9 -> 679.84 | J8: =J9 -> 81.80 | K8: =K9 -> 5,220.00
D9: 421001 | E9: 岳阳县水利局 | F9: =SUM(F10:F16) -> 5,981.64 | G9: =SUM(G10:G16) -> 761.64 | H9: =SUM(H10:H16) -> 679.84 | J9: =SUM(J10:J16) -> 81.80 | K9: =SUM(K10:K16) -> 5,220.00
A10: 208 | B10: 05 | C10: 05 | D10: 2080505 | E10: 机关事业单位基本养老保险缴费支出 | F10: =G10+K10 -> 67.51 | G10: =SUM(H10:J10) -> 67.51 | H10: 67.51
A11: 208 | B11: 05 | C11: 06 | D11: 2080506 | E11: 机关事业单位职业年金缴费支出 | F11: 2.19 | G11: 2.19 | H11: 2.19
A12: 208 | B12: 99 | C12: 99 | D12: 2089999 | E12: 其他社会保障和就业支出 | F12: 4.22 | G12: 4.22 | H12: 4.22
A13: 210 | B13: 11 | C13: 01 | D13: 2101101 | E13: 行政单位医疗 | F13: 40.09 | G13: 40.09 | H13: 40.09
A14: 213 | B14: 03 | C14: 01 | D14: 2130301 | E14: 行政运行 | F14: 817.00 | G14: 597.00 | H14: 515.20 | J14: 81.80 | K14: 220.00
A15: 221 | B15: 02 | C15: 01 | D15: 2210201 | E15: 住房公积金 | F15: 50.63 | G15: 50.63 | H15: 50.63
D16: 2130305 | E16: 水利工程建设 | F16: 5,000.00 | G16: 0.00 | K16: 5,000.00

Sheet 8一般公共预算基本支出表
E1: 部门公开表08
A2: 一般公共预算基本支出表
A3: 单位：单位：421001_岳阳县水利局 | E3: 单位：万元
A4: 部门预算支出经济分类科目 | C4: 本年一般公共预算基本支出
A5: 科目代码 | B5: 科目名称 | C5: 合计 | D5: 人员经费 | E5: 公用经费
A6: 301 | B6: 工资福利支出 | D6: =SUM(D7:D16) -> 679.84
A7: 30108 | B7: 机关事业单位基本养老保险缴费 | D7: 67.51
A8: 30109 | B8: 职业年金缴费 | D8: 2.19
A9: 30112 | B9: 其他社会保障缴费 | D9: 4.22
A10: 30110 | B10: 职工基本医疗保险缴费 | D10: 35.88
A11: 30111 | B11: 公务员医疗补助缴费 | D11: 4.21
A12: 30107 | B12: 绩效工资 | D12: 62.64
A13: 30101 | B13: 基本工资 | D13: 304.94
A14: 30102 | B14: 津贴补贴 | D14: 77.83
A15: 30103 | B15: 奖金 | D15: 69.79
A16: 30113 | B16: 住房公积金 | D16: 50.63
A17: 302 | B17: 商品和服务支出 | E17: =SUM(E18:E31) -> 81.80
A18: 30299 | B18: 其他商品和服务支出 | E18: 1.17
A19: 30217 | B19: 公务接待费 | E19: 2.92
A20: 30216 | B20: 培训费 | E20: 2.04
A21: 30213 | B21: 维修（护）费
A22: 30211 | B22: 差旅费 | E22: 7.00
A23: 30209 | B23: 物业管理费 | E23: 4.08
A24: 30207 | B24: 邮电费 | E24: 5.82
A25: 30205 | B25: 水费 | E25: 0.87
A26: 30202 | B26: 印刷费 | E26: 1.17
A27: 30201 | B27: 办公费 | E27: 5.25
A28: 30206 | B28: 电费 | E28: 3.50
A29: 30214 | B29: 租赁费 | E29: 1.17
A30: 30215 | B30: 会议费 | E30: 4.50
A31: 30239 | B31: 其他交通费用 | E31: 42.31
A32: 合计
A33: 注：如本表格为空，则表示本年度未安排此项目。

Sheet 9工资福利(政府预算)
A2: 一般公共预算基本支出表--人员经费(工资福利支出)(按政府预算经济分类)
A3: 单位：421001-岳阳县水利局 | M3: 金额单位：万元
A4: 功能科目 | D4: 单位代码 | E4: 单位名称（功能科目） | F4: 总 计 | G4: 机关工资福利支出 | L4: 对事业单位经常性补助
A5: 类 | B5: 款 | C5: 项 | G5: 合计 | H5: 工资奖金津补贴 | I5: 社会保障缴费 | J5: 住房公积金 | K5: 其他工资福利支出 | L5: 合计 | M5: 工资福利支出 | N5: 其他对事业单位补助
E6: 合计 | F6: =F7 -> 679.84 | G6: =G7 -> 679.84 | H6: =H7 -> 515.20 | I6: =I7 -> 114.01 | J6: =J7 -> 50.63
D7: 421 | E7: 岳阳县水利局 | F7: =F8 -> 679.84 | G7: =G8 -> 679.84 | H7: =H8 -> 515.20 | I7: =I8 -> 114.01 | J7: =J8 -> 50.63
D8: 421001 | E8: 岳阳县水利局 | F8: =G8 -> 679.84 | G8: =SUM(H8:K8) -> 679.84 | H8: =SUM(H9:H14) -> 515.20 | I8: =SUM(I9:I14) -> 114.01 | J8: =SUM(J9:J14) -> 50.63
A9: 208 | B9: 05 | C9: 05 | D9: 421001 | E9: 机关事业单位基本养老保险缴费支出 | F9: =G9 -> 67.51 | G9: =SUM(H9:K9) -> 67.51 | I9: 67.51
A10: 208 | B10: 05 | C10: 06 | D10: 421001 | E10: 机关事业单位职业年金缴费支出 | F10: 2.19 | G10: 2.19 | I10: 2.19
A11: 208 | B11: 99 | C11: 99 | D11: 421001 | E11: 其他社会保障和就业支出 | F11: 4.22 | G11: 4.22 | I11: 4.22
A12: 210 | B12: 11 | C12: 01 | D12: 421001 | E12: 行政单位医疗 | F12: 40.09 | G12: 40.09 | I12: 40.09
A13: 213 | B13: 03 | C13: 01 | D13: 421001 | E13: 行政运行 | F13: 515.20 | G13: 515.20 | H13: 515.20
A14: 221 | B14: 02 | C14: 01 | D14: 421001 | E14: 住房公积金 | F14: 50.63 | G14: 50.63 | J14: 50.63

Sheet 10工资福利
A2: 一般公共预算基本支出表--人员经费(工资福利支出)(按部门预算经济分类)
A3: 单位：421001-岳阳县水利局 | U3: 金额单位：万元
A4: 功能科目 | D4: 单位代码 | E4: 单位名称（功能科目） | F4: 总 计 | G4: 工资津补贴 | L4: 社会保障缴费 | R4: 住房公积金 | S4: 其他工资福利支出
A5: 类 | B5: 款 | C5: 项 | G5: 合计 | H5: 基本工资 | I5: 津贴补贴 | J5: 奖金 | K5: 绩效工资 | L5: 合计 | M5: 机关事业单位基本养老保险缴费 | N5: 职业年金缴费 | O5: 职工基本医疗保险缴费 | P5: 公务员医疗补助缴费 | Q5: 其他社会保障缴费 | S5: 合计 | T5: 伙食补助费 | U5: 医疗费 | V5: 其他工资福利支出
E6: 合计
D7: 421 | E7: 岳阳县水利局 | F7: =F8 -> 679.84 | G7: =G8 -> 515.20 | H7: 304.94 | I7: 77.83 | J7: 69.79 | K7: 62.64 | L7: 164.64 | M7: 67.51 | N7: 2.19 | O7: 35.88 | P7: 4.21 | Q7: 4.22 | R7: 50.63
D8: 421001 | E8: 岳阳县水利局 | F8: =SUM(F9:F14) -> 679.84 | G8: =SUM(G9:G14) -> 515.20 | H8: 304.94 | I8: 77.83 | J8: 69.79 | K8: 62.64 | L8: 164.64 | M8: 67.51 | N8: 2.19 | O8: 35.88 | P8: 4.21 | Q8: 4.22 | R8: 50.63
A9: 208 | B9: 05 | C9: 05 | D9: 421001 | E9: 机关事业单位基本养老保险缴费支出 | F9: =G9+L9 -> 67.51 | L9: =SUM(M9:Q9) -> 67.51 | M9: 67.51
A10: 208 | B10: 05 | C10: 06 | D10: 421001 | E10: 机关事业单位职业年金缴费支出 | F10: 2.19 | L10: =SUM(M10:Q10) -> 2.19 | N10: 2.19
A11: 208 | B11: 99 | C11: 99 | D11: 421001 | E11: 其他社会保障和就业支出 | F11: 4.22 | L11: =SUM(M11:Q11) -> 4.22 | Q11: 4.22
A12: 210 | B12: 11 | C12: 01 | D12: 421001 | E12: 行政单位医疗 | F12: 40.09 | L12: =SUM(M12:Q12) -> 40.09 | O12: 35.88 | P12: 4.21
A13: 213 | B13: 03 | C13: 01 | D13: 421001 | E13: 行政运行 | F13: 515.20 | G13: =SUM(H13:K13) -> 515.20 | H13: 304.94 | I13: 77.83 | J13: 69.79 | K13: 62.64 | L13: =SUM(M13:Q13) -> 0.00
A14: 221 | B14: 02 | C14: 01 | D14: 421001 | E14: 住房公积金 | F14: 50.63 | L14: =SUM(M14:R14) -> 50.63 | R14: 50.63

Sheet 11个人家庭(政府预算)
A2: 一般公共预算基本支出表--人员经费(对个人和家庭的补助)(按政府预算经济分类)
A3: 单位：421001-岳阳县水利局 | J3: 金额单位：万元
A4: 功能科目 | D4: 单位代码 | E4: 单位名称（功能科目） | F4: 总计 | G4: 社会福利和救济 | H4: 助学金 | I4: 个人农业生产补贴 | J4: 离退休费 | K4: 其他对个人和家庭的补助
A5: 类 | B5: 款 | C5: 项
E6: 合计 | F6: 0.00
A10: 本表无数据

Sheet 12个人家庭
A2: 一般公共预算基本支出表--人员经费(对个人和家庭的补助)（按部门预算经济分类）
A3: 单位：421001-岳阳县水利局 | Q3: 金额单位：万元
A4: 功能科目 | D4: 单位代码 | E4: 单位名称（功能科目） | F4: 总计 | G4: 离休费 | H4: 退休费 | I4: 退职（役）费 | J4: 抚恤金 | K4: 生活补助 | L4: 救济费 | M4: 医疗费补助 | N4: 助学金 | O4: 奖励金 | P4: 代缴社会保险费 | Q4: 个人农业生产补贴 | R4: 其他对个人和家庭的补助
A5: 类 | B5: 款 | C5: 项
E6: 合计 | F6: 0.00
A10: 本表无数据

Sheet 13商品服务(政府预算)
A2: 一般公共预算基本支出表--公用经费(商品和服务支出)（按政府预算经济分类）
A3: 单位：421001-岳阳县水利局 | S3: 金额单位：万元
A4: 功能科目 | D4: 单位代码 | E4: 单位名称（功能科目） | F4: 总计 | G4: 机关商品和服务支出 | R4: 对事业单位经常性补助
A5: 类 | B5: 款 | C5: 项 | G5: 合计 | H5: 办公经费 | I5: 会议费 | J5: 培训费 | K5: 专用材料购置费 | L5: 委托业务费 | M5: 公务接待费 | N5: 因公出国（境）费用 | O5: 公务用车运行维护费 | P5: 维修(护)费 | Q5: 其他商品和服务支出 | R5: 合计 | S5: 商品和服务支出 | T5: 其他对事业单位补助
E6: 合计 | F6: =G6 -> 81.80 | G6: =SUM(H6:Q6) -> 81.80 | H6: =H7 -> 71.17 | I6: =I7 -> 4.50 | J6: 2.04 | M6: 2.92 | Q6: 1.17
D7: 421 | E7: 岳阳县水利局 | F7: =G7 -> 81.80 | G7: =SUM(H7:Q7) -> 81.80 | H7: =H8 -> 71.17 | I7: =I8 -> 4.50 | J7: 2.04 | M7: 2.92 | Q7: 1.17
D8: 421001 | E8: 岳阳县水利局 | F8: =G8 -> 81.80 | G8: =SUM(H8:Q8) -> 81.80 | H8: =H9 -> 71.17 | I8: =I9 -> 4.50 | J8: =J9 -> 2.04 | M8: =M9 -> 2.92 | Q8: =Q9 -> 1.17
A9: 213 | B9: 03 | C9: 01 | D9: 421001 | E9: 行政运行 | F9: =G9 -> 81.80 | G9: =SUM(H9:Q9) -> 81.80 | H9: 71.17 | I9: 4.50 | J9: 2.04 | M9: 2.92 | Q9: 1.17

Sheet 14商品服务
A2: 一般公共预算基本支出表--公用经费(商品和服务支出)(按部门预算经济分类)
A3: 单位：421001-岳阳县水利局 | AF3: 金额单位：万元
A4: 功能科目 | D4: 单位代码 | E4: 单位名称（功能科目） | F4: 总 计 | G4: 办公费 | H4: 印刷费 | I4: 咨询费 | J4: 手续费 | K4: 水费 | L4: 电费 | M4: 邮电费 | N4: 取暖费 | O4: 物业管理费 | P4: 差旅费 | Q4: 因公出国（境）费用 | R4: 维修(护)费 | S4: 租赁费 | T4: 会议费 | U4: 培训费 | V4: 公务接待费 | W4: 专用材料费 | X4: 被装购置费 | Y4: 专用燃料费 | Z4: 劳务费 | AA4: 委托业务费 | AB4: 工会经费 | AC4: 福利费 | AD4: 公务用车运行维护费 | AE4: 其他交通费用 | AF4: 税金及附加费用 | AG4: 其他商品和服务支出
A5: 类 | B5: 款 | C5: 项
E6: 合计 | F6: =F7 -> 81.80 | G6: =G7 -> 5.25 | H6: 1.17 | K6: 0.87 | L6: 3.50 | M6: 5.82 | O6: 4.08 | P6: 7.00 | S6: 1.17 | T6: 4.50 | U6: 2.04 | V6: 2.92 | AE6: 42.31 | AG6: 1.17
D7: 421 | E7: 岳阳县水利局 | F7: =F8 -> 81.80 | G7: 5.25 | H7: 1.17 | K7: =K8 -> 0.87 | L7: 3.50 | M7: 5.82 | O7: =O8 -> 4.08 | P7: 7.00 | S7: 1.17 | T7: 4.50 | U7: 2.04 | V7: 2.92 | AE7: =AE8 -> 42.31 | AG7: =AG8 -> 1.17
D8: 421001 | E8: 岳阳县水利局 | F8: =F9 -> 81.80 | G8: 5.25 | H8: 1.17 | K8: =K9 -> 0.87 | L8: 3.50 | M8: 5.82 | O8: =O9 -> 4.08 | P8: 7.00 | S8: 1.17 | T8: 4.50 | U8: 2.04 | V8: 2.92 | AE8: =AE9 -> 42.31 | AG8: =AG9 -> 1.17
A9: 213 | B9: 03 | C9: 01 | D9: 421001 | E9: 行政运行 | F9: =SUM(G9:AG9) -> 81.80 | G9: 5.25 | H9: 1.17 | K9: 0.87 | L9: 3.50 | M9: 5.82 | O9: 4.08 | P9: 7.00 | S9: 1.17 | T9: 4.50 | U9: 2.04 | V9: 2.92 | AE9: 42.31 | AG9: 1.17

Sheet 15三公
A2: 一般公共预算“三公”经费支出表
A3: 单位：421001-岳阳县水利局 | G3: 金额单位：万元
A4: 单位编码 | B4: 单位名称 | C4: “三公”经费合计 | D4: 因公出国（境）费 | E4: 公务用车购置及运行费 | H4: 公务接待费
E5: 小计 | F5: 公务用车购置费 | G5: 公务用车运行费
B6: 合计 | C6: =C7 -> 10.00 | H6: =H7 -> 10.00
A7: 421 | B7: 岳阳县水利局 | C7: =C8 -> 10.00 | H7: =H8 -> 10.00
A8: 421001 | B8: 岳阳县水利局 | C8: =H8 -> 10.00 | H8: 10.00

Sheet 16政府性基金
A2: 政府性基金预算支出表
A3: 单位：421001-岳阳县水利局 | G3: 金额单位：万元
A4: 科目编码 | B4: 科目名称 | C4: 合计 | D4: 本年政府性基金预算支出 | H4: 项目支出
D5: 小计 | E5: 人员经费 | G5: 公用经费
E6: 工资福利支出 | F6: 对个人和家庭的补助
B7: 合计 | C7: =C8 -> 6,709.86 | H7: =H8 -> 6,709.86
A8: 2290402 | B8: 其他地方自行试点项目收益专项债券收入安排的支出 | C8: =H8 -> 6,709.86 | H8: 6,709.86

Sheet 17政府性基金(政府预算)
A2: 政府性基金预算支出分类汇总表（按政府预算经济分类）
A3: 单位：421001-岳阳县水利局 | S3: 金额单位：万元
A4: 功能科目 | D4: 单位代码 | E4: 单位名称（功能科目） | F4: 总 计 | G4: 机关工资福利支出 | H4: 机关商品和服务支出 | I4: 机关资本性支出(一) | J4: 机关资本性支出(二) | K4: 对事业单位经常性补助 | L4: 对事业单位资本性补助 | M4: 对企业补助 | N4: 对企业资本性支出 | O4: 对个人和家庭的补助 | P4: 对社会保障基金补助 | Q4: 债务利息及费用支出 | R4: 债务还本支出 | S4: 转移性支出 | T4: 其他支出
A5: 类 | B5: 款 | C5: 项
E6: 合计 | F6: =F7 -> 6,709.86 | J6: =J7 -> 6,709.86
D7: 421 | E7: 岳阳县水利局 | F7: =F8 -> 6,709.86 | J7: =J8 -> 6,709.86
D8: 421001 | E8: 岳阳县水利局 | F8: =F9 -> 6,709.86 | J8: =J9 -> 6,709.86
A9: 229 | B9: 04 | C9: 02 | D9: 421001 | E9: 其他地方自行试点项目收益专项债券收入安排的支出 | F9: =J9 -> 6,709.86 | J9: 6,709.86

Sheet 18政府性基金（部门预算）
A2: 政府性基金预算支出分类汇总表（按部门预算经济分类）
A3: 单位：421001-岳阳县水利局 | P3: 金额单位：万元
A4: 功能科目 | D4: 单位代码 | E4: 单位名称（功能科目） | F4: 总 计 | G4: 基本支出 | K4: 项目支出
A5: 类 | B5: 款 | C5: 项 | G5: 合计 | H5: 工资福利支出 | I5: 一般商品和服务支出 | J5: 对个人和家庭的补助 | K5: 合计 | L5: 按项目管理的商品和服务支出 | M5: 按项目管理的对个人和家庭的补助 | N5: 债务利息及费用支出 | O5: 资本性支出（基本建设） | P5: 资本性支出 | Q5: 对企业补助（基本建设） | R5: 对企业补助 | S5: 对社会保障基金补助 | T5: 其他支出
E6: 合计 | F6: =F7 -> 6,709.86 | K6: =K7 -> 6,709.86 | O6: =O7 -> 6,709.86
D7: 421 | E7: 岳阳县水利局 | F7: =F8 -> 6,709.86 | K7: =K8 -> 6,709.86 | O7: =O8 -> 6,709.86
D8: 421001 | E8: 岳阳县水利局 | F8: =F9 -> 6,709.86 | K8: =K9 -> 6,709.86 | O8: =O9 -> 6,709.86
A9: 229 | B9: 04 | C9: 02 | D9: 421001 | E9: 其他地方自行试点项目收益专项债券收入安排的支出 | F9: =K9 -> 6,709.86 | K9: =O9 -> 6,709.86 | O9: 6,709.86

Sheet 19国有资本经营预算
A2: 国有资本经营预算支出表
A3: 单位：421001-岳阳县水利局 | H3: 金额单位：万元
A4: 科目编码 | B4: 科目名称 | C4: 合计 | D4: 本年国有资本经营预算支出 | H4: 项目支出
D5: 小计 | E5: 人员经费 | G5: 公用经费
E6: 工资福利支出 | F6: 对个人和家庭的补助
B7: 合计 | C7: 0.00
A13: 本表无数据

Sheet 20财政专户管理资金
A2: 财政专户管理资金预算支出表
A3: 单位：421001-岳阳县水利局 | H3: 金额单位：万元
A4: 科目编码 | B4: 科目名称 | C4: 合计 | D4: 本年财政专户管理资金预算支出 | H4: 项目支出
D5: 小计 | E5: 人员经费 | G5: 公用经费
E6: 工资福利支出 | F6: 对个人和家庭的补助
B7: 合计 | C7: 0.00
A13: 本表无数据

Sheet 21专项清单
A2: 专项资金预算汇总表
A3: 单位：421001-岳阳县水利局 | N3: 金额单位：万元
A4: 单位代码 | C4: 单位名称（专项名称） | D4: 预算额度 | N4: 预算编制方式
D5: 总计 | E5: 一般公共预算 | K5: 政府性基金 | L5: 国有资本经营预算 | M5: 社会保险基金预算资金 | N5: 编入部门预算金额 | O5: 财政代编金额
E6: 一般公共预算小计 | F6: 经费拨款 | G6: 纳入一般公共预算管理的非税收入 | H6: 一般债券 | I6: 外国政府和国际组织贷款 | J6: 外国政府和国际组织赠款
C7: 合计 | D7: =D8 -> 220.00 | E7: =E8 -> 220.00 | F7: =F8 -> 130.00 | G7: =G8 -> 90.00 | N7: =N8 -> 220.00
A8: 421 | C8: 岳阳县水利局 | D8: =SUM(D9:D11) -> 220.00 | E8: =SUM(E9:E11) -> 220.00 | F8: =SUM(F9:F11) -> 130.00 | G8: =SUM(G9:G11) -> 90.00 | N8: =SUM(N9:N11) -> 220.00
A9: 421001 | B9: 特定目标类农村饮水水质安全检测 | C9: 农村饮水水质安全检测 | D9: 30.00 | E9: 30.00 | F9: 30.00 | N9: 30.00
A10: 421001 | B10: 特定目标类水政执法 | C10: 水政执法 | D10: 100.00 | E10: 100.00 | F10: 10.00 | G10: 90.00 | N10: 100.00
A11: 421001 | B11: 运转其他类定额补助 | C11: 定额补助 | D11: 90.00 | E11: 90.00 | F11: 90.00 | N11: 90.00

Sheet 22项目支出绩效目标表
C2: 项目支出绩效目标表
A3: 单位：421001-岳阳县水利局 | L3: 金额单位：万元
A4: 单位代码 | B4: 单位（专项）名称 | C4: 资金总额 | D4: 实施期绩效目标 | E4: 绩效指标
E5: 一级指标 | F5: 二级指标 | G5: 三级指标 | H5: 指标值 | I5: 指标值内容 | J5: 评（扣分标准） | K5: 度量单位 | L5: 指标值类型 | M5: 备注
A6: 421001 | B6: 岳阳县水利局 | C6: 220.00
A7: 421001 | B7: 农村饮水水质安全检测 | C7: 30 | D7: 持续提升 | E7: 效益指标 | F7: 生态效益指标 | G7: 保证水质达标 | H7: ≥95% | I7: 突出农村饮水水质安全 | J7: 未达标准值酌情扣分 | K7: % | L7: 定量
F8: 社会效益指标 | G8: 保证群众饮水安全 | H8: ≥95% | I8: 解决农村饮水水质安全问题 | J8: 未达标准值酌情扣分 | K8: % | L8: 定量
F9: 经济效益指标 | G9: 无 | H9: 无 | I9: 无 | J9: 无 | K9: 无 | L9: 定性
E10: 产出指标 | F10: 经济成本指标 | G10: 农村饮水水质安全检测经费 | H10: ≤300000 | I10: 饮水安全经费 | J10: 未达标准值酌情扣分 | K10: 元 | L10: ≤
F11: 生态环境成本指标 | G11: 保证水质安全 | H11: % | I11: 安全饮水经费 | J11: 未达标准值酌情扣分 | K11: % | L11: 定性
F12: 数量指标 | G12: 保证水质安全经费到位 | H12: ≤300000 | I12: 保证安全饮水经费到位 | J12: 未达标准值酌情扣分 | K12: 元 | L12: 定量
F13: 质量指标 | G13: 无 | H13: 无 | I13: 无 | J13: 无 | K13: 无 | L13: 定性
F14: 时效指标 | G14: 2023年 | H14: 1年 | I14: 2023年1月-12月 | J14: 未达标准值酌情扣分 | K14: 年 | L14: 定量
F15: 社会成本指标 | G15: 无 | H15: 无 | I15: 无 | J15: 无 | K15: 无 | L15: 定性
E16: 满意度指标 | F16: 服务对象满意度指标 | G16: 社会群众满意度 | H16: ≥95% | I16: 满意度达100% | J16: 未达指标值酌情扣分 | K16: % | L16: ≥
A17: 421001 | B17: 水政执法 | C17: 100 | D17: 持续提升 | E17: 效益指标 | F17: 经济效益指标 | G17: 无 | H17: 无 | I17: 无 | J17: 无 | K17: 无 | L17: 定量
F18: 社会效益指标 | G18: 优化执法环境 | H18: % | I18: 解决水行政执法 | J18: 未达指标值酌情扣分 | K18: % | L18: 定性
F19: 生态效益指标 | G19: 改善水质污染 | H19: % | I19: 突出乡村特色保护生态环境 | J19: 未达指标值酌情扣分 | K19: % | L19: 定性
B20: 水政执法 | C20: 110 | D20: 持续提升 | E20: 产出指标 | F20: 社会成本指标 | G20: 无 | H20: 无 | I20: 无 | J20: 无 | K20: 无 | L20: 定性
F21: 生态环境成本指标 | G21: 无 | H21: 无 | I21: 无 | J21: 无 | K21: 无 | L21: 定性
F22: 数量指标 | G22: 水政执法经费 | H22: ≤1100000 | I22: 实地考察严格核实 | J22: 未达指标值酌情扣分 | K22: 元 | L22: 定量
F23: 经济成本指标 | G23: 水政执法 | H23: ≤1100000 | I23: 水政执法经费 | J23: 未达指标值酌情扣分 | K23: 元 | L23: ≤
F24: 质量指标 | G24: 无 | H24: 无 | I24: 无 | J24: 无 | K24: 无 | L24: 定性
F25: 时效指标 | G25: 2023年 | H25: 1年 | I25: 2023年1-12月 | J25: 未达指标值酌情扣分 | K25: 年 | L25: 定量
E26: 满意度指标 | F26: 服务对象满意度指标 | G26: 社会群众满意度 | H26: ≥95% | I26: 满意度达100% | J26: 未达指标值酌情扣分 | K26: % | L26: ≥
A27: 421001 | B27: 定额补助 | C27: 90.00 | D27: 按文件定额发放 | E27: 产出指标 | F27: 数量指标 | G27: 定额补助 | H27: 元 | I27: 定额补助 | J27: 未达标准值酌情扣分 | K27: 元 | L27: 定量
F28: 生态环境成本指标 | G28: 无 | H28: 无 | I28: 无 | J28: 无
F29: 社会成本指标 | G29: 无 | H29: 无 | I29: 无 | J29: 无
F30: 经济成本指标 | G30: 定额补助 | H30: ≤900000 | I30: 定额补助 | J30: 未达标准值酌情扣分 | K30: 元 | L30: ≤
F31: 时效指标 | G31: 2023年 | H31: 年 | I31: 按年发放 | J31: 未达标准值酌情扣分 | K31: 年 | L31: 定性
F32: 质量指标 | G32: 按文件定额发放 | H32: 100% | I32: 定额补助 | J32: 未达标准值酌情扣分 | K32: % | L32: 定性
E33: 效益指标 | F33: 经济效益指标 | G33: 无 | H33: 无 | I33: 无 | J33: 无 | K33: 无
F34: 社会效益指标 | G34: 定额补助 | H34: 合格 | I34: 严格控制非生产性开支 | J34: 未达标准值酌情扣分 | K34: % | L34: 定性
F35: 生态效益指标 | G35: 无 | H35: 合格 | I35: 无 | J35: 无 | K35: 无

Sheet 23整体支出绩效目标表
A1: 整体支出绩效目标表
A2: 单位：岳阳县水利局 | Q2: 金额单位：万元
A3: 单位编码 | B3: 单位名称 | C3: 年度预算申请 | J3: 整体绩效目标 | K3: 部门整体支出年度绩效目标 | N3: 部门整体支出年度绩效目标
C4: 资金总额 | D4: 按收入性质分 | H4: 按支出性质分
D5: 一般公共预算 | E5: 政府性基金拨款 | F5: 财政专户管理资金 | G5: 其他资金 | H5: 基本支出 | I5: 项目支出 | K5: 一级指标 | L5: 二级指标 | M5: 三级指标 | N5: 指标值类型 | O5: 指标值 | P5: 度量单位 | Q5: 指标值说明 | R5: 备注
A6: 421001 | B6: 岳阳县水利局 | C6: =D6+E6 -> 12,691.50 | D6: =981.64+5000 -> 5,981.64 | E6: 6,709.86 | H6: 851.64 | I6: 11,839.86 | J6: 目标1： 保障水利部门正常运行，正确履职 目标2： 做好防汛抗旱、山洪灾害治理工作 目标3：做好安全生态水系建设项目工作 目标4：水利水毁修复 目标5：农村饮水安全巩固提升 | K6: 产出指标 | L6: 重点工作任务完成 | M6: 安全饮水水质监测 | N6: ≤ | O6: 30 | P6: 万元 | Q6: 反映安全饮水水质监测支出
L7: 履职目标实现 | M7: 确保安全饮水水质监测工作及时完成 | N7: ≥ | O7: 100 | P7: % | Q7: 反映安全饮水水质监测工作完成情况
K8: 效益指标 | L8: 履职效益 | M8: 生态效益 | N8: ≥ | O8: 100 | P8: % | Q8: 发展绿色农业，改善农村饮水效益明显
L9: 满意度 | M9: 社会公众或服务对象满意度 | N9: ≥ | O9: 98 | P9: % | Q9: 反映服务对象满意度
